Cogmind - Beta 11.1 @@@ ROGUE MODE // 2022.05.29 @ 17:26:23 Player: Jinx Result: Destroyed by G-47 Trooper with Particle Gun Performance ------------- Evolutions (2) 1000 Regions Visited (4) 800 Robots Destroyed (36) 180 Value Destroyed (1139) 1139 Prototype IDs (2) 40 Alien Tech Used (0) 0 Bonus (0) 0 TOTAL SCORE: 3159 Bonus ------- None Cogmind --------- Core Integrity 0/550 Matter 250/300 Energy 40/100 System Corruption 0% Temperature Cool (31) Movement Flying (360) Ox4 Location -8/Materials Parts ------- > --- POWER (2) -------- (None) > --- PROPULSION (4) --- Flight Unit > --- UTILITY (3) ------ Medium Storage Unit > --- WEAPON (2) ------- Particle Gun Shock Bomb Launcher > --- INVENTORY (10) --- Small Storage Unit Great Maul Peak State ------------ > --- POWER ------------ Light Nuclear Core Light Angular Momentum Engine > --- PROPULSION ------- Carbon-fiber Leg Aerolev Unit VTOL Module VTOL Module > --- UTILITY ---------- Medium Storage Unit Experimental Sensor Array Core Shielding > --- WEAPON ----------- Heavy Laser Improved Light Cannon > --- INVENTORY -------- Light Nuclear Core Small Storage Unit Light Armor Plating Medium Armor Plating Hardened Medium Armor Plating Particle Gun Heavy Assault Rifle Shock Bomb Launcher Plasma Cutter Great Maul [Rating: 38] Favorites ----------- Power Improved Ion Engine Engine Improved Ion Engine Power Core Light Nuclear Core Propulsion VTOL Module Treads Armored Treads Leg Aluminum Leg Hover Unit Aerolev Unit Flight Unit VTOL Module Utility Small Storage Unit Device Experimental Sensor Array Storage Small Storage Unit Protection Core Shielding Weapon Improved Light Cannon Energy Gun Heavy Laser Ballistic Gun Assault Rifle Ballistic Cannon Improved Light Cannon Launcher Shock Bomb Launcher Special Weapon Plasma Cutter Build | -11 -10 -9 -9 -8 ------- Run | Scr Mat Mat Min Mat Slots Evolved 4 | . . 2 . 2 Power 1 | . . . . 1 Propulsion 2 | . . 1 . 1 Utility 1 | . . 1 . . Weapon . | . . . . . Parts Attached 58 | 6 2 11 14 25 Power 12 | 1 . 2 2 7 Engine 9 | 1 . 2 1 5 Core 3 | . . . 1 2 Reactor . | . . . . . Propulsion 22 | 2 1 4 7 8 Treads 1 | . . . . 1 Leg 5 | 2 1 1 . 1 Wheel . | . . . . . Hover 2 | . . . . 2 Flight 14 | . . 3 7 4 Utility 11 | 1 1 3 2 4 Device 1 | . . . 1 . Storage 2 | 1 . . . 1 Processor . | . . . . . Hackware . | . . . . . Protection 8 | . 1 3 1 3 Artifact . | . . . . . Weapon 13 | 2 . 2 3 6 Energy Gun 5 | 1 . . 2 2 Energy Cannon . | . . . . . Ballistic Gun 4 | 1 . 1 1 1 Ballistic Cannon 2 | . . 1 . 1 Launcher 1 | . . . . 1 Special Weapon 1 | . . . . 1 Impact Weapon . | . . . . . Slashing Weapon . | . . . . . Piercing Weapon . | . . . . . Special Melee Weapon . | . . . . . Unidentified Prototypes 2 | . . . 1 1 Parts Lost 33 | . . 3 9 21 Power 7 | . . 1 2 4 Propulsion 10 | . . . 3 7 Utility 7 | . . 1 1 5 Weapon 9 | . . 1 3 5 Highest Loss Streak 14 | . . 3 7 14 To Critical Strikes 1 | . . . 1 . Average Slot Usage (%) 92 | . 98 92 97 86 Engine 9 | . 14 10 10 5 Core 2 | . . . . 5 Treads 1 | . . . . 2 Leg 5 | . 28 10 . . Hover 1 | . . . . 4 Flight 23 | . . 22 33 25 Device 2 | . . . 2 6 Storage 10 | . 14 11 11 9 Protection 14 | . 12 16 18 10 Energy Gun 8 | . 14 3 7 8 Ballistic Gun 4 | . 14 11 2 . Ballistic Cannon 7 | . . 7 10 8 Naked Turns . | . . . . . Heaviest Build 36 | 12 19 28 27 36 Greatest Support 30 | 20 20 30 12 16 Greatest Overweight (x) 8 | . . 3 2 8 Average Overweight (x) . | . . 1 . 1 Largest Inventory Capacity 10 | 8 8 8 8 10 Average Capacity 8 | 6 8 8 8 9 Most Carried 10 | 6 8 8 8 10 Average Carried 7 | 3 7 7 7 7 Final Capacity 10 | 8 8 8 8 10 Final Carried 8 | 6 8 8 4 2 Class Distribution -------------------- 74% | Mutant 19% | Scavenger-Mutant 5% | Sprinter Dominant Class ---------------- Mutant | -10/Materials Mutant | -9/Materials Scavenger-Mutant | -9/Mines Mutant | -8/Materials Resources | -11 -10 -9 -9 -8 ----------- Run | Scr Mat Mat Min Mat Matter Collected 1028 | 217 115 200 219 277 Remotely . | . . . . . Salvage Created 1222 | . 158 269 263 532 Parts 69 | . 6 15 17 31 Haulers Intercepted . | . . . . . Recyclers Shooed 1 | . . 1 . . Parts Field Recycled . | . . . . . Retrieved Matter . | . . . . . Parts Self-Destructed . | . . . . . Prevented . | . . . . . Kills | -11 -10 -9 -9 -8 ------- Run | Scr Mat Mat Min Mat Combat Hostiles Destroyed 37 | . 4 9 12 12 Guns 19 | . 4 6 4 5 Cannons 18 | . . 3 8 7 Classes Destroyed 7 | . 1 2 2 2 Recycler 1 | . . . . 1 Swarmer 10 | . . 4 4 2 Grunt 18 | . 4 4 5 5 Duelist 1 | . . . 1 . Sentry 5 | . . 1 . 4 Hunter 1 | . . . . 1 Assembled 2 | . . . 2 . Best Kill Streak 4 | . 3 4 4 4 Combat Bots Only 4 | . 3 4 4 4 Max Kills in Single Turn 2 | . 1 2 1 1 Gunslinging 1 | . . 1 . . Exploded . | . . . . . Melee . | . . . . . Uniques/NPCs Destroyed . | . . . . . Combat | -11 -10 -9 -9 -8 -------- Run | Scr Mat Mat Min Mat Damage Taken 4128 | . 218 467 1078 2365 Core 880 | . 43 70 212 555 Absorbed by Shields . | . . . . . Redirected to Shielding 41 | . . . 16 25 Core Remaining (%) 70 | 100 82 . 29 . Volleys Fired 113 | . 16 23 29 45 Largest 2 | . 2 2 2 2 Hottest 108 | . 70 70 108 108 Shots Fired 219 | . 32 44 57 86 Gun 142 | . 32 34 28 48 Cannon 76 | . . 10 29 37 Launcher . | . . . . . Special 1 | . . . . 1 Kinetic 144 | . 16 33 55 40 Thermal 75 | . 16 11 2 46 Explosive . | . . . . . Electromagnetic . | . . . . . Robot Hit Streak 11 | . 7 11 7 7 Robot Miss Streak 6 | . 2 4 3 6 Penetration Max . | . . . . . Secondary Targets 3 | . 1 2 . . Max Gunslinging Chain 1 | . 1 1 . . Shots Hit Robots 126 | . 24 27 30 45 Core Hits 67 | . 8 14 20 25 Critical Kills . | . . . . . Critical Parts Destroyed . | . . . . . Critical Strikes 6 | . . 3 2 1 Burn 3 | . . 2 . 1 Blast 3 | . . 1 2 . Melee Attacks . | . . . . . Impact . | . . . . . Slashing . | . . . . . Piercing . | . . . . . Sneak Attacks . | . . . . . Combat Hostiles . | . . . . . Follow-up Attacks . | . . . . . Damage Inflicted 2126 | . 293 386 536 911 Guns 1120 | . 293 261 170 396 Cannons 993 | . . 125 366 502 Explosions . | . . . . . Melee . | . . . . . Ramming 1 | . . . . 1 Kinetic 1500 | . 178 273 516 533 Thermal 625 | . 115 113 20 377 Explosive . | . . . . . Electromagnetic . | . . . . . Impact . | . . . . . Slashing . | . . . . . Piercing . | . . . . . Highest Corruption 1 | . 1 . . . Average Corruption 1 | . 1 . . . Corruption Purged . | . . . . . Corruption Blocked . | . . . . . Effects 3 | . 3 . . . Message Errors 1 | . 1 . . . Matter Fused 2 | . 2 . . . Overload Shots . | . . . . . Overflow Damage 11 | . . . 8 3 Projectiles 11 | . . . 8 3 Explosions . | . . . . . Melee . | . . . . . Knockbacks 9 | . . 1 5 3 Impact . | . . . . . Kinetic 9 | . . 1 5 3 Secondary . | . . . . . Self-Inflicted Damage . | . . . . . Shots . | . . . . . Rammed 1 | . . . . 1 Targets Rammed 1 | . . . . 1 Kicked . | . . . . . Crushed . | . . . . . Highest Temperature 346 | . 294 89 242 346 Average Temperature 97 | . 129 32 89 112 Received Heat Transfer 1270 | . 120 171 232 747 Effects 1 | . . . . 1 Energy Bleed 1 | . . . . 1 Siege Activations . | . . . . . Robots Corrupted . | . . . . . Combat Hostiles . | . . . . . Parts Fried . | . . . . . Impact Corruptions . | . . . . . Robots Melted . | . . . . . Combat Hostiles . | . . . . . Parts Melted 1 | . . 1 . . Heat Transferred 1702 | . 333 481 37 851 Parts Sabotaged . | . . . . . Parts Stolen . | . . . . . Parts Stripped . | . . . . . Power Chain Reactions . | . . . . . Missiles Intercepted . | . . . . . Alert | -11 -10 -9 -9 -8 ------- Run | Scr Mat Mat Min Mat Peak Influence 337 | . 128 305 337 183 Initial 118 | . . 53 118 27 Average 136 | . 41 195 241 71 Maximum Alert Level 1 | . . 1 1 . Low Security (%) 69 | 100 100 30 38 100 Level 1 30 | . . 69 61 . Level 2 . | . . . . . Level 3 . | . . . . . Level 4 . | . . . . . Level 5 . | . . . . . High Security . | . . . . . Max Security . | . . . . . Squads Dispatched 6 | . 2 1 1 2 Investigation 3 | . 1 1 1 . Extermination . | . . . . . Reinforcement 2 | . 1 . . 1 Assault . | . . . . . Garrison 1 | . . . . 1 Intercept . | . . . . . Searches Triggered . | . . . . . Construction Impeded . | . . . . . Haulers Reinforced . | . . . . . Active Scanning Responses . | . . . . . Cargo Convoy Interrupts . | . . . . . Stealth | -11 -10 -9 -9 -8 --------- Run | Scr Mat Mat Min Mat Distress Signals 5 | . . 1 . 4 Communications Jammed . | . . . . . Distress Signals . | . . . . . Times Spotted 70 | . 5 15 21 29 Peak Tracking Total 11 | . 3 6 11 8 Tactical Retreats 4 | . . . 1 3 Traps | -11 -10 -9 -9 -8 ------- Run | Scr Mat Mat Min Mat Traps Triggered 3 | . 2 1 . . Indirectly . | . . . . . Trap Hack Attempts . | . . . . . Triggered . | . . . . . Disarmed . | . . . . . Reprogrammed . | . . . . . Reused . | . . . . . Traps Extracted . | . . . . . Installed . | . . . . . Triggered . | . . . . . Machines | -11 -10 -9 -9 -8 ---------- Run | Scr Mat Mat Min Mat Machines Disabled . | . . . . . Max in Single Turn . | . . . . . Machines Sabotaged . | . . . . . Garrisons Compromised . | . . . . . Overloaded Fab Kills . | . . . . . Hacking | -11 -10 -9 -9 -8 --------- Run | Scr Mat Mat Min Mat Machines Accessed 8 | . 5 2 1 . Terminals 5 | . 3 2 . . Fabricators . | . . . . . Repair Stations . | . . . . . Recycling Units 2 | . 2 . . . Scanalyzers . | . . . . . Garrison Access . | . . . . . Total Hacks 14 | . 10 3 1 . Successful 7 | . 5 1 1 . Failed 7 | . 5 2 . . Catastrophic 1 | . . 1 . . Database Lockouts . | . . . . . Manual 5 | . 3 2 . . Terminals 9 | . 6 3 . . Fabricators . | . . . . . Repair Stations . | . . . . . Recycling Units 4 | . 4 . . . Scanalyzers . | . . . . . Garrison Access . | . . . . . Terminal Hacks 5 | . 3 1 1 . Robot Analysis 1 | . 1 . . . Open Door 1 | . . . 1 . Level Access Points 1 | . 1 . . . Alert Level 1 | . 1 . . . Zone Layout 1 | . . 1 . . Fabricator Hacks . | . . . . . Repair Station Hacks . | . . . . . Recycling Unit Hacks 2 | . 2 . . . Report Inventory 2 | . 2 . . . Scanalyzer . | . . . . . Garrison Access Hacks . | . . . . . Unauthorized Hacks . | . . . . . Terminals . | . . . . . Fabricators . | . . . . . Repair Stations . | . . . . . Recycling Units . | . . . . . Scanalyzers . | . . . . . Garrison Access . | . . . . . Data Cores Recovered . | . . . . . Used . | . . . . . Hacking Detections 3 | . 2 1 . . Full Trace Events . | . . . . . Feedback Events . | . . . . . Feedback Blocked . | . . . . . Robot Schematics Acquired . | . . . . . Robots Built . | . . . . . Authchips . | . . . . . Time . | . . . . . Total Robot Build Rating . | . . . . . Part Schematics Acquired . | . . . . . Parts Built . | . . . . . Authchips . | . . . . . Time . | . . . . . Total Part Build Rating . | . . . . . Parts Repaired . | . . . . . Time . | . . . . . Parts Recycled . | . . . . . Recycled Matter . | . . . . . Retrieved Matter . | . . . . . Retrieved Components . | . . . . . Parts Scanalyzed . | . . . . . Part Schematics Acquired . | . . . . . Parts Damaged . | . . . . . Bothacking | -11 -10 -9 -9 -8 ------------ Run | Scr Mat Mat Min Mat Used RIF Installer . | . . . . . Robots Hacked . | . . . . . Non-combat . | . . . . . Combat . | . . . . . Robot Hacks Applied . | . . . . . Relay Couplers Released . | . . . . . Fabnet Peak Effective % . | . . . . . Robots Rewired . | . . . . . Allies Hacked . | . . . . . Hacks Repelled . | . . . . . Allies | -11 -10 -9 -9 -8 -------- Run | Scr Mat Mat Min Mat Total Allies . | . . . . . Largest Group . | . . . . . Highest-Rated Group . | . . . . . Highest-Rated Ally . | . . . . . Total Orders . | . . . . . Ally Attacks . | . . . . . Total Damage . | . . . . . Kills . | . . . . . Allies Corrupted . | . . . . . Allies Melted . | . . . . . Intel | -11 -10 -9 -9 -8 ------- Run | Scr Mat Mat Min Mat Robot Analysis Total 1 | . 1 . . . Derelict Logs Recovered 1 | . . . 1 . Drone Launches . | . . . . . Drone Recoveries . | . . . . . Exploration | -11 -10 -9 -9 -8 ------------- Run | Scr Mat Mat Min Mat Turns Passed 2020 | 67 279 350 597 727 Spaces Moved 1153 | 45 183 155 434 336 Core 4 | 3 . . . 1 Treads . | . . . . . Legs 279 | 42 183 50 . 4 Wheels . | . . . . . Hover 86 | . . . . 86 Flight 784 | . . 105 434 245 Fastest Speed 26 | 50 120 109 29 26 Average Speed 125 | 115 120 162 102 142 Slowest Speed 450 | 120 120 275 192 450 Overloaded Moves . | . . . . . Propulsion Burnouts . | . . . . . Robots Hopped 1 | . . . 1 . Cave-ins Triggered . | . . . . . Exploration Rate (%) 33 | 3 36 25 75 29 Regions Visited 4 Branch Regions 1 Pre-discovered Areas . | . . . . . Known Exits Taken 1 | . 1 . . . Unknown Exits Taken 3 | 1 . 1 1 . Scrap Searched . | . . . . . Spaces Dug . | . . . . . Terrain Destroyed 4 | . . . 4 . Melee . | . . . . . Projectile 4 | . . . 4 . AOE . | . . . . . Terrain Rammed . | . . . . . Walls Destroyed . | . . . . . Machines Disabled . | . . . . . Actions | -11 -10 -9 -9 -8 --------- Run | Scr Mat Mat Min Mat Total 1509 | 58 212 212 530 497 Wait 132 | . 3 11 45 73 Move 1147 | 44 182 154 431 336 Hop 1 | . . . 1 . Pick Up 33 | 8 5 6 3 11 Fast Attach 22 | 4 1 4 5 8 Attach 23 | 2 . 5 4 12 Detach 1 | . . 1 . . Swap 13 | . 1 2 5 5 Drop 23 | . 4 6 7 6 Fire 113 | . 16 23 29 45 Melee . | . . . . . Ram 1 | . . . . 1 Kick . | . . . . . Crush . | . . . . . Escape Stasis . | . . . . . Rewire . | . . . . . Trap . | . . . . . Miscellaneous . | . . . . . Route ------- -11/Scrapyard -10/Materials (discovered 4 exits: *Mat x3 / [*Min]) -9/Materials -9/Mines -8/Materials History --------- Turn | Location | Event 19 | -11/Scrapyard | Discovered new exit (range 15) 68 | -11/Scrapyard | Entered Materials 118 | -10/Materials | Identified exit to Materials 143 | -10/Materials | Discovered new exit (range 9) 318 | -10/Materials | Build established: Mutant 347 | -10/Materials | Entered another Materials area 347 | -9/Materials | Evolved 2 slots: Propulsion x1, Utility x1 471 | -9/Materials | Lost 3 parts (1p1u1w) 644 | -9/Materials | Discovered new exit (range 13) 697 | -9/Materials | Entered Mines 850 | -9/Mines | Learned 2 Materials zone layouts 927 | -9/Mines | Found a hidden stash of uninstalled traps 979 | -9/Mines | Met a Derelict shopkeep closing up shop 1172 | -9/Mines | Build established: Scavenger-Mutant 1181 | -9/Mines | Found a damaged Exp. Sensor Array with a note attached 1185 | -9/Mines | Found Prototype Device 1186 | -9/Mines | Identified Exp. Sensor Array 1211 | -9/Mines | Assembled infested the area 1255 | -9/Mines | Core integrity fell below 50% 1292 | -9/Mines | Discovered new exit (range 11) 1294 | -9/Mines | Entered Materials 1294 | -8/Materials | Evolved 2 slots: Power x1, Propulsion x1 1317 | -8/Materials | Lost 7 parts (2p3n2w) 1673 | -8/Materials | Build established: Mutant 1867 | -8/Materials | Lost 5 parts (3p2u) 1956 | -8/Materials | Garrison activated, responded to threat 1985 | -8/Materials | Core integrity fell below 50% 2001 | -8/Materials | Core integrity fell below 20% 2021 | -8/Materials | Destroyed by G-47 Trooper with Particle Gun Last Messages --------------- 01975_ VTOL Module destroyed. 01980_ Hrd. Medium Armor Plating destroyed. 01981_ S-10 Pest suffers critical hit (Destroy). 01981_ S-10 Pest destroyed. 01986_ Hvy. Assault Rifle destroyed. 01988_ K-01 Serf collects debris. 01989_ Acquired Flight Unit. 01991_ VTOL Module destroyed. 01992_ G-47 Trooper destroyed. 01993_ K-01 Serf collects debris. 01994_ Slammed into K-01 Serf. 01998_ Particle Gun destroyed. 02000_ Acquired Flight Unit. 02003_ Acquired Lgt. Ion Engine. 02004_ Acquired 4 matter. 02007_ Acquired 5 matter. 02011_ Lgt. Ion Engine destroyed. 02015_ Flight Unit destroyed. 02017_ Plasma Cutter destroyed. 02021_ Y-45 Defender suffers critical hit (Burn). Map ----- +----------------------------------------------------+ | ??????????????????????????????????????????# #???? | | ??????????????????????????????????????????# #???? | | ??????????????????????????????????????????# #???? | | ??????????????????????????????????????????# #???? | | ??????????????????????????????????????????# #???? | | ??????????????????????????????????????????# #???? | | ??????????????????????????????????????????# #???? | | ??????????????????????????????????????????# #???? | | ??????????????????????????????????????????# #???? | | ??????????????????????????? ?????????????# #???? | | ????????????????????? ???? #????????????# #???? | | ??????????????????# ??? u#????????????# #???? | | ??????????????????# ??? #????????????# #???? | | ??????????????????# ??? #????????????# #???? | | ??????????????????# """ #????????????# #???? | | ??????????????????# """ #????????????# #???? | | ??????????????????# """ #????????????# #???? | | ??????????????????# #????????????# #???? | | ??????????????????# #??????????###+####? | | ??????????????????# #??????????#! * *#? | | ??????????????????# #??????????#%""" #? | | ??????????????????# "" #??????????#="T" #? | | ??????????????????# "Y %#??????????# #? | | ??????????????????# "" #??????????#[ #? | | ??????????????????# +??????????# /= =#? | | ??????????????????# @ % #??????????#% = ! #? | | ??????????????????####+###Ygg#??????????#%[%*" #? | | ?????????????????????????#% %#??????????#% """ #? | | ?????????????????????????# [#?????????##% """ #? | | ?????????????????????????# #?????????# !""""%#? | | ?????????????????????????# g#?????????##%%""" #? | | """ #?# ## """ ## *a#??????????# " #? | | """ #?# ## ## ##?????????###+####? | | """ #?# ############## ###########% #??? | | #?# ## #?# %= [% == #??? | | ######## ## #?# ! %!!*%%! #??? | | ####### # #?# % %! != #??? | | # """"""" #?# % ############ ##??? | | T + """"""" #?### ####### =[ # #???? | | # """"""" #???# # # + #???? | | ####### # """"""" #???#*/ """ #/ """# #???? | | #?????## ## """"""" #???#%# "G" # """# #???? | | #??????# ############???#=# " " # """# #???? | | #??????# #??????????????# # # # #???? | | ######## #??????????????# # ######## #???? | | #??????????????# # #??????# #???? | | ################ #######??????# #???? | | #????????????####???? | | #############################???????????????????? | | #????????????????????????????????????????? | +----------------------------------------------------+ Best States ------------- Heat Dissipation 31 Energy Generation 27 Energy Capacity 325 Matter Stores 300 Matter Capacity 300 Sight Range 16 Robot Scan Range 20 Terrain Scan Density 10 Armor Coverage 375 Core Shielding 20 Evasion (%) 64 Item Schematics ----------------- None Robot Schematics ------------------ None Fabricated ------------ Nothing Alien Tech Used ----------------- None Achievements -------------- I Survived The Infestation Challenges ------------ None Game ------ Seed HelicalWarpKatana Manual? 0 Play Time 00:31:46 Cumulative 34.9 hours Start 2022.05.29 @ 16:34:19 End 2022.05.29 @ 17:26:23 Sessions 1 Manual Loads 0 Difficulty Rogue Special Mode None Game No. 20 Rogue 2 Adventurer 18 Explorer 0 Win Type - Total 1 Types 0/1/0/0/0/0/0/0/0 Lore% 33 Gallery% 30 Achievement% 34 Wizard Run 0 Options --------- ASCII 0 Keyboard 0 Movement Mouse Keybinds 0 Fullscreen 2 Font 24/Terminus Map View 113x50 Tactical HUD 1 Map Filters NONE Filters NONE Steam 1 RUN: 8ae1731e-6cf3-4d57-a89e-cb72bb637974